bitfinex-derivatives/quotes_ETHF0:USTF0_20250428
["timestamp","ask_amount","ask_price","bid_price","bid_amount"]
[1745847343961,3.72076,1792.4,1792.2,1.11544]
[1745847344154,2.78783,1792.7,1792.3,2.6226]
[1745847344354,2.78783,1792.7,1792.3,9.04296]
[1745847344660,2.6054,1792.6,1792.3,7.9276]
[1745847344864,1.11527,1792.5,1792.4,3.73789]
[1745847345164,1.11518,1792.7,1792.5,1.11525]
[1745847345462,1.11518,1792.7,1792.6,2.7394]
[1745847346163,3.68681,1792.8,1792.6,2.7394]
[1745847346463,1.11509,1792.8,1792.7,1.11512]
[1745847347066,1.11505,1792.9,1792.8,1.11507]
[1745847347257,2.5717,1793.0,1792.7,8.5118]
[1745847347455,2.5717,1793.0,1792.9,1.115]
[1745847347456,3.68666,1793.0,1792.9,1.115]
[1745847347663,2.5899,1793.3,1793.0,1.1149]
[1745847347857,2.5899,1793.3,1793.0,2.7394]
[1745847347858,1.11488,1793.1,1793.0,2.7394]
[1745847348163,1.11487,1793.2,1793.0,2.7394]
[1745847348355,2.7865,1793.6,1793.0,8.0434]
[1745847348561,2.78679,1793.4,1793.0,9.15833]
[1745847348764,1.11485,1793.2,1793.1,1.11488]
[1745847349063,1.11486,1793.2,1793.0,8.0434]
[1745847349361,3.829,1793.3,1793.0,8.0434]
[1745847349560,1.11483,1793.2,1793.0,8.0434]
[1745847349762,2.78659,1793.6,1793.0,8.0434]
[1745847349958,2.7142,1793.5,1793.3,1.11475]
[1745847350159,3.82889,1793.5,1793.4,2.613]
[1745847350557,1.11488,1793.1,1793.0,3.2078]
[1745847350752,1.11488,1793.1,1793.0,5.8208]
[1745847350959,11.99518945,1793.1,1793.0,11.1228]
[1745847351160,1.11494,1793.0,1792.9,40.8]
[1745847351360,3.78794,1793.0,1792.9,40.8]
[1745847351767,1.115,1792.9,1792.8,2.5479]
[1745847352068,1.11499,1793.0,1792.8,3.66297]
[1745847352363,13.55330945,1793.1,1792.8,43.3479]
[1745847352559,1.11494,1793.0,1792.9,2.5479]
[1745847352958,3.78794,1793.0,1792.9,2.5479]
[1745847353166,1.11494,1793.0,1792.9,2.5479]
[1745847354059,1.11494,1793.0,1792.9,3.6629]
[1745847354362,1.11494,1793.0,1792.9,2.5479]
[1745847354565,11.99520945,1793.1,1793.0,1.11494]
[1745847354754,1.11486,1793.2,1793.1,1.11488]
[1745847354960,1.56792423,1793.2,1793.0,4.3227]
[1745847355160,1.56788423,1793.2,1793.1,2.6384]
[1745847355367,0.45306423,1793.2,1793.1,3.75328]
[1745847355564,0.45306423,1793.2,1793.1,9.05428]
[1745847356162,0.45306423,1793.2,1793.1,14.05428]
[1745847356360,1.11466,1793.5,1793.3,1.11471]
[1745847356571,1.11466,1793.5,1793.4,3.75309]
[1745847356772,1.11466,1793.5,1793.4,2.6384]
[1745847357270,0.45317984,1793.5,1793.4,2.6384]
[1745847357568,1.56780984,1793.5,1793.4,2.6384]
[1745847358860,1.56780984,1793.5,1793.4,3.75309]
[1745847359266,0.45317984,1793.5,1793.4,3.75309]
[1745847359767,1.11462,1793.6,1793.5,1.11463]
[1745847359967,1.11462,1793.6,1793.5,6.86153]
[1745847360176,1.56739835,1793.6,1793.5,5.7469]
[1745847360671,5.36991,1794.0,1793.5,5.7469]
[1745847360878,2.5924,1793.9,1793.5,5.7469]
[1745847361069,1.11444,1793.8,1793.7,3.2078]
[1745847361375,1.56718947,1793.8,1793.7,10.9549]
[1745847361678,1.56718947,1793.8,1793.7,12.06941]
[1745847361679,0.45274947,1793.8,1793.7,12.06941]
[1745847361971,2.5924,1794.1,1793.8,1.11439]
[1745847362175,1.11437,1794.0,1793.9,2.6741]
[1745847362371,1.56718461,1794.0,1793.9,2.6741]
[1745847362673,1.11444,1793.8,1793.7,5.073]
[1745847362881,1.11444,1793.8,1793.7,7.7471]
[1745847363068,1.11443,1793.9,1793.7,8.86157]
[1745847363372,1.56725461,1793.8,1793.7,7.7471]
[1745847363577,0.45281461,1793.8,1793.7,12.06941]
[1745847363767,1.56725461,1793.8,1793.7,10.9549]
[1745847364169,1.56725461,1793.8,1793.7,52.86941]
[1745847364371,1.56725461,1793.8,1793.7,51.7549]
[1745847364770,0.45281461,1793.8,1793.7,52.86941]
[1745847365475,5.46373,1794.4,1793.7,52.86941]
[1745847365476,2.6785,1794.4,1794.0,1.11432]
[1745847365675,7.20192819,1795.0,1794.3,3.2078]
[1745847365865,1.11395,1794.6,1794.5,3.2078]
[1745847366066,0.4529671,1794.6,1794.4,5.072]
[1745847366271,3.74991,1794.5,1794.4,5.072]
[1745847366468,1.11413,1794.3,1794.2,2.7174]
[1745847366670,1.11413,1794.3,1794.1,5.7184]
[1745847366671,0.4529671,1794.3,1793.8,5.8109]
[1745847366871,0.4529671,1794.3,1793.9,7.7355]
[1745847367073,0.4529671,1794.3,1794.1,1.11426]
[1745847367074,1.11418,1794.3,1794.1,1.11426]
[1745847367266,1.11413,1794.3,1794.2,3.7777]
[1745847367470,1.11426,1794.1,1794.0,3.2078]
[1745847367677,1.11426,1794.1,1793.7,40.8]
[1745847367678,0.4529671,1794.1,1793.9,5.071]
[1745847367877,0.4529671,1794.1,1794.0,3.77782]
[1745847368080,1.5672271,1794.1,1794.0,3.77782]
[1745847368263,0.4529671,1794.1,1794.0,5.8713]
[1745847368469,3.2385671,1794.2,1793.7,40.8]
[1745847368669,2.78606,1793.9,1793.5,5.071]
[1745847368872,1.11457,1793.6,1793.5,5.071]
[1745847369876,1.5675371,1793.6,1793.5,6.18563]
[1745847370073,1.5675371,1793.6,1793.5,5.071]
[1745847371106,0.4529671,1793.6,1793.5,8.2788]
[1745847371391,1.11457,1793.6,1793.5,9.39343]
[1745847371695,1.11457,1793.6,1793.5,5.071]
[1745847371999,1.11456,1793.7,1793.5,6.18563]
[1745847372189,1.11457,1793.6,1793.5,8.2788]
[1745847372992,1.11457,1793.6,1793.5,5.071]
[1745847373186,1.57030994,1793.6,1793.5,5.071]
[1745847373384,1.57030994,1793.6,1793.5,7.6328]
[1745847373581,1.57030994,1793.6,1793.5,5.071]
[1745847374075,2.78664,1793.5,1793.1,44.0078]
[1745847374281,3.24247994,1793.4,1792.9,7.6328]
[1745847374480,2.78727,1793.1,1792.6,3.2078]
[1745847374681,1.1151,1792.8,1792.6,10.8406]
[1745847374883,1.1151,1792.8,1792.7,2.5618]
[1745847375078,1.1151,1792.8,1792.7,3.67693]
[1745847375283,1.1151,1792.8,1792.7,43.3618]
[1745847375692,1.1151,1792.8,1792.7,40.8]
[1745847376095,1.57083994,1792.8,1792.7,40.8]
[1745847376394,1.57083994,1792.8,1792.7,43.2605]
[1745847376783,1.57080994,1792.8,1792.7,44.37563]
[1745847376984,1.57080994,1792.8,1792.7,43.2605]
[1745847377179,0.45573994,1792.8,1792.7,44.37563]
[1745847377594,0.45573994,1792.8,1792.7,52.00063]
[1745847377792,0.45573994,1792.8,1792.7,47.00063]
[1745847377986,1.57080994,1792.8,1792.7,47.00063]
[1745847378185,1.57080994,1792.8,1792.7,45.8855]
[1745847378388,0.45573994,1792.8,1792.7,47.00063]
[1745847378693,1.57080994,1792.8,1792.7,45.8855]
[1745847379692,1.57080994,1792.8,1792.7,47.00063]
[1745847379992,0.45573994,1792.8,1792.7,47.00063]
[1745847380192,0.45573994,1792.9,1792.8,1.11507]
[1745847380492,0.45573994,1792.9,1792.8,4.32287]
[1745847380692,0.45573994,1792.9,1792.7,2.4605]
[1745847380889,2.6772,1792.8,1792.6,4.32296]
[1745847381188,3.79231,1792.8,1792.7,2.696]
[1745847381389,1.11513,1792.7,1792.6,3.2078]
[1745847381587,1.11538,1792.3,1792.2,3.2078]
[1745847381789,1.11575,1791.7,1791.6,3.2078]
[1745847381990,1.57149994,1791.7,1791.4,7.7203]
[1745847382191,0.45573994,1791.7,1791.5,40.8]
[1745847382387,1.57148994,1791.7,1791.6,2.6483]
[1745847382588,1.57148994,1791.7,1791.4,1.69545]
[1745847382589,1.11588,1791.5,1791.4,1.69545]
[1745847382789,1.11624,1791.0,1790.7,1.11634]
[1745847382989,1.11625,1790.9,1790.8,2.6483]
[1745847383195,0.45573994,1791.5,1790.8,46.6561]
[1745847383697,1.11615,1791.1,1790.9,1.11624]
[1745847383898,5.92238994,1791.4,1790.9,2.6483]
[1745847384101,1.11619,1791.0,1790.9,2.6483]
[1745847384305,2.79001,1791.3,1790.8,40.8]
[1745847384495,2.7442,1790.9,1790.8,44.57611]
[1745847384797,2.7442,1790.9,1790.8,43.4598]
[1745847385299,3.2078,1791.4,1790.8,40.8]
[1745847385600,1.11615,1791.1,1790.8,40.8]
[1745847385798,3.86039,1791.0,1790.8,40.8]
[1745847385994,2.7442,1791.0,1790.8,40.8]
[1745847386200,3.2078,1791.4,1790.9,2.6598]
[1745847386201,1.11609,1791.2,1790.9,2.6598]
[1745847386700,1.11619,1791.0,1790.9,2.6598]
[1745847386904,1.11644,1790.6,1790.5,23.57012978]
[1745847387100,1.11644,1790.6,1790.5,18.49612978]
[1745847387604,8.03413,1790.9,1790.7,1.11637]
[1745847387605,6.35976,1790.9,1790.7,1.11637]
[1745847387796,6.35979,1790.9,1790.7,1.11637]
[1745847388603,5.2435,1790.9,1790.8,1.11631]
[1745847388805,6.35975,1790.9,1790.8,1.11631]
[1745847389007,6.35975,1790.9,1790.7,1.11633]
[1745847389309,6.35975,1790.9,1790.8,1.11631]
[1745847389509,5.2435,1790.9,1790.8,1.11631]
[1745847389704,6.35978,1790.9,1790.5,8.51283]
[1745847389904,2.7442,1790.9,1790.8,4.32411]
[1745847390108,1.11612,1791.1,1790.9,1.11622]
[1745847390403,1.11619,1791.0,1790.9,2.5138]
[1745847390598,2.7698,1791.0,1790.9,3.63005]
[1745847390799,3.88599,1791.0,1790.9,2.5138]
[1745847391202,3.88599,1791.0,1790.6,10.47759]
[1745847391203,1.11628,1790.9,1790.6,7.6865]
[1745847391506,1.11618,1791.1,1790.7,2.771]
[1745847391809,3.2078,1791.3,1790.8,5.99859]
[1745847392003,1.11608,1791.2,1791.1,1.11611]
[1745847392408,3.88586,1791.2,1791.1,1.11611]
[1745847392906,3.88586,1791.2,1791.0,1.11614]
[1745847393109,1.11618,1791.1,1790.9,1.11624]
[1745847393409,2.7698,1791.0,1790.9,3.88724]
[1745847393706,2.7698,1791.0,1790.6,7.6865]
[1745847393907,1.11625,1790.9,1790.8,3.13195661]
[1745847394411,5.56036,1791.0,1790.6,5.029]
[1745847394597,1.11644,1790.6,1790.5,5.7879]
[1745847394797,1.11656,1790.4,1790.3,3.2078]
[1745847394997,5.8922,1790.5,1790.1,2.5369]
[1745847395196,1.11675,1790.1,1790.0,43.3801]
[1745847395402,2.79141,1790.4,1789.9,7.6981]
[1745847395708,1.11681,1790.0,1789.9,2.5801]
[1745847395910,8.68379,1790.3,1789.9,44.49693]
[1745847396205,2.79178,1790.2,1789.6,59.1538]
[1745847396412,2.6844,1790.1,1789.7,7.6101]
[1745847396805,3.8012,1790.1,1789.9,1.11684]
[1745847397011,3.8012,1790.1,1790.0,2.7717]
[1745847397407,1.11685,1790.0,1789.8,44.68862]
[1745847397607,3.79405,1790.0,1789.9,2.7717]
[1745847397906,1.11687,1789.9,1789.8,40.8]
[1745847398106,3.79407,1789.9,1789.8,40.8]
[1745847398306,1.11694,1789.8,1789.7,5.03]
[1745847398507,2.6772,1789.9,1789.7,8.91867]
[1745847399012,2.7926,1789.7,1789.1,3.2078]
[1745847399215,1.11725,1789.3,1789.1,4.32515]
[1745847399411,1.11725,1789.3,1789.1,3.2078]
[1745847399605,1.11725,1789.3,1789.1,4.32517]
[1745847399913,1.11725,1789.3,1789.0,40.8]
[1745847400107,1.11742,1789.1,1789.0,1.11743]
[1745847400312,1.11737,1789.1,1789.0,1.11741]
[1745847400516,3.71176,1789.2,1789.0,1.11741]
[1745847400910,5.888,1789.6,1789.4,1.11716]
[1745847401114,1.11719,1789.4,1789.3,1.11721]
[1745847401409,1.11716,1789.5,1789.3,1.1172]
[1745847401610,2.5944,1789.4,1789.1,2.6399]
[1745847401830,1.11727,1789.3,1789.2,1.11731]
[1745847402016,2.5944,1789.4,1789.2,1.11729]
[1745847402213,2.5944,1789.4,1789.2,1.11728]
[1745847402410,11.88847,1789.6,1789.2,1.11728]
[1745847402411,3.2078,1789.6,1789.2,3.2078]
[1745847402610,2.5944,1789.7,1789.6,1.11706]
[1745847402811,3.2078,1790.0,1789.8,1.11688]
[1745847403008,2.6118,1789.9,1789.7,1.11695]
[1745847403212,2.6118,1789.9,1789.4,5.033]
[1745847403413,1.11709,1789.6,1789.5,2.7165]
[1745847403610,1.11706,1789.6,1789.5,2.7165]
[1745847403811,7.79266,1789.6,1789.2,3.2078]
[1745847404012,1.11725,1789.3,1789.2,4.32508]
[1745847404210,1.11725,1789.3,1789.2,4.32507]
[1745847405019,1.11737,1789.1,1789.0,7.04169]
[1745847405215,3.72917,1789.2,1789.1,1.11737]
[1745847405522,2.6118,1789.2,1789.1,1.11737]
[1745847405819,16.708,1789.6,1789.0,8.71785]
[1745847406010,2.7398,1789.5,1789.1,2.79342]
[1745847406207,3.85693,1789.5,1789.4,1.11719]
[1745847406520,5.034,1789.9,1789.4,3.2078]
[1745847406821,3.66581,1790.1,1789.7,3.2078]
[1745847407122,3.85661,1790.1,1789.9,1.11682]
[1745847407319,3.85659,1790.1,1789.7,6.00026]
[1745847407510,1.11683,1790.0,1789.7,6.00026]
[1745847407710,2.7398,1790.1,1789.9,1.11684]
[1745847407915,2.7398,1790.1,1789.8,1.11693]
[1745847408112,1.11681,1790.0,1789.8,1.11693]
[1745847408313,1.11687,1789.9,1789.8,1.11693]
[1745847408514,5.5317,1790.1,1789.7,3.2078]
[1745847408723,1.11694,1789.8,1789.7,3.2078]
[1745847409121,1.11704,1789.7,1789.5,11.35368]
[1745847409324,1.11706,1789.6,1789.5,11.35368]
[1745847409516,5.31837,1789.9,1789.5,11.35368]
[1745847409717,1.11706,1789.6,1789.5,7.707]
[1745847409927,2.79266,1789.6,1789.2,5.034]
[1745847410220,1.11725,1789.3,1789.2,5.034]
[1745847410621,1.11731,1789.2,1789.1,6.85626]
[1745847410922,0.44581814,1789.2,1789.1,6.85627]
[1745847411117,1.56312814,1789.2,1789.1,5.7389]
[1745847411514,1.56312814,1789.2,1789.1,2.5311]
[1745847411822,1.1174,1789.1,1789.0,1.11743]
[1745847412017,0.44581814,1789.2,1788.9,8.2418]
[1745847412218,1.56313814,1789.2,1789.1,1.11737]
[1745847412626,1.56313814,1789.2,1788.9,8.2418]
[1745847412810,0.44581814,1789.2,1789.1,4.32517]
[1745847413220,0.44581814,1789.4,1789.1,3.2078]
[1745847413526,0.44581814,1789.4,1789.3,1.11725]
[1745847414020,0.08512493,1789.4,1789.3,14.36005]
[1745847414323,1.11712,1789.5,1789.3,10.7616]
[1745847414525,1.11725,1789.3,1789.2,2.7666]
[1745847414917,1.11736,1789.2,1789.0,5.035]
[1745847415124,1.11735,1789.2,1789.1,3.2078]
[1745847415323,1.11737,1789.1,1789.0,5.035]
[1745847415629,2.79303,1789.4,1789.0,6.15242]
[1745847415827,1.11735,1789.2,1789.0,6.15242]
[1745847416022,2.79303,1789.4,1789.0,6.15242]
[1745847416218,2.5169,1789.4,1789.0,5.035]
[1745847416418,1.11737,1789.2,1789.1,3.2078]
[1745847416722,1.11737,1789.2,1789.1,4.32517]
[1745847416929,1.11737,1789.2,1789.1,3.2078]
[1745847417519,2.5169,1789.4,1789.0,5.035]
[1745847417721,2.5169,1789.4,1789.0,6.15242]
[1745847417722,2.79305,1789.4,1789.0,6.15242]
[1745847417920,5.49125,1789.4,1789.1,1.11737]
[1745847418114,5.58578,1789.5,1789.1,3.77412]
[1745847418426,1.11709,1789.6,1789.5,1.11711]
[1745847418822,1.11709,1789.6,1789.5,3.77391]
[1745847419019,1.11709,1789.6,1789.5,2.6568]
[1745847419425,5.888,1789.9,1789.5,2.6568]
[1745847419629,2.6982,1790.0,1789.7,1.11695]
[1745847419821,1.11687,1789.9,1789.8,2.6568]
[1745847420628,2.79235,1789.8,1789.3,2.6779]
[1745847420831,1.11731,1789.2,1789.1,2.6765]
[1745847421122,1.1173,1789.3,1789.1,3.79383]
[1745847421322,1.1173,1789.3,1789.2,2.6765]
[1745847421528,2.5225,1789.4,1789.0,8.0948]
[1745847421717,1.1171,1789.6,1789.3,3.2078]
[1745847421921,1.11706,1789.6,1789.5,3.2078]
[1745847422118,9.0958,1790.0,1789.5,3.2078]
[1745847422119,1.11687,1790.0,1789.6,2.79264]
[1745847422320,5.99952,1790.2,1790.1,1.11675]
[1745847422321,3.2078,1790.2,1790.1,1.11675]
[1745847422726,2.79125,1790.5,1790.1,44.0078]
[1745847422929,1.11662,1790.3,1790.2,2.6765]
[1745847423523,1.1169,1789.9,1789.7,8.0948]
[1745847423720,1.1169,1789.9,1789.8,2.6765]
[1745847423925,1.1169,1789.9,1789.8,43.4765]
[1745847424121,1.1169,1789.9,1789.8,2.6765]
[1745847424334,1.117,1789.7,1789.6,2.6773]
[1745847425631,1.11712,1789.5,1789.4,2.6269]
[1745847425832,1.11712,1789.5,1789.4,2.6773]
[1745847426338,1.56471287,1789.5,1789.4,2.6773]
[1745847426535,1.11743,1789.0,1788.9,7.5152]
[1745847426729,1.11739,1789.1,1789.0,1.11743]
[1745847426929,1.11743,1789.0,1788.9,11.84046]
[1745847427130,0.44759287,1789.0,1788.9,11.84046]
[1745847427423,0.44759287,1789.0,1788.9,16.84046]
[1745847427628,0.44759287,1789.0,1788.9,57.64046]
[1745847429133,0.44759287,1789.0,1788.9,52.64046]
[1745847429637,0.44759287,1789.0,1788.9,57.64046]
[1745847431737,0.44759287,1789.0,1788.9,52.64046]
[1745847433339,1.1175,1788.9,1788.8,2.6711]
[1745847433542,3.7636,1788.9,1788.8,0.0207]
[1745847433841,8.7636,1788.9,1788.8,0.0207]
[1745847434043,3.7636,1788.9,1788.8,0.0207]
[1745847434239,4.21119287,1788.9,1788.8,0.0207]
[1745847434638,1.56509287,1788.9,1788.8,1.13826]
[1745847434831,0.44759287,1788.9,1788.8,0.0207]
[1745847435039,1.56509287,1788.9,1788.8,4.34606]
[1745847435241,1.56509287,1788.9,1788.8,3.2285]
[1745847435442,1.56509287,1788.9,1788.8,0.0207]
[1745847435940,0.44759287,1788.9,1788.8,4.34606]
[1745847436340,0.44759287,1788.9,1788.8,14.79316]
[1745847437043,0.44759287,1788.9,1788.8,9.79316]
[1745847438444,0.44759287,1788.9,1788.8,14.79316]
[1745847439147,0.52358276,1788.9,1788.8,14.79316]
[1745847440044,0.52358276,1788.9,1788.8,9.79316]
[1745847440544,1.64108276,1788.9,1788.8,9.79316]
[1745847440740,1.64108276,1788.9,1788.8,0.0207]
[1745847440948,8.73138276,1788.9,1788.1,3.2078]
[1745847441139,1.11792,1788.3,1788.1,5.9105]
[1745847441338,1.11793,1788.2,1788.1,5.9105]
[1745847441545,0.44288932,1788.2,1788.1,2.7027]
[1745847441753,5.44288932,1788.2,1787.8,10.7985]
[1745847442050,1.11808,1788.0,1787.8,3.2078]
[1745847442235,2.68998989,1787.9,1787.8,45.12598]
[1745847443151,3.80810989,1787.9,1787.8,44.0078]
[1745847443345,3.80814989,1787.9,1787.6,8.0968]
[1745847443652,1.11818,1787.8,1787.7,2.5128]
[1745847443849,2.614,1787.8,1787.7,2.5128]
[1745847444053,0.07598989,1787.9,1787.8,1.11818]
[1745847444255,0.07598989,1787.9,1787.7,2.5128]
[1745847444648,3.80811989,1787.9,1787.7,2.5128]
[1745847444849,2.68998989,1787.9,1787.7,2.5128]
[1745847445046,3.80814989,1787.9,1787.7,2.5128]
[1745847445355,1.19416989,1787.8,1787.6,44.0078]
[1745847445652,2.8711,1787.7,1787.6,45.1261]
[1745847445854,0.07598989,1787.8,1787.7,1.11825]
[1745847446050,0.07598989,1787.8,1787.7,3.86445]
[1745847446651,0.02941428,1787.8,1787.7,3.86445]
[1745847447957,0.02941428,1787.8,1787.7,8.86445]
[1745847448467,0.02941428,1787.8,1787.7,3.86445]
[1745847449260,0.02941428,1787.8,1787.7,1.11825]
[1745847449458,2.90601428,1787.8,1787.7,1.11825]
[1745847449658,0.02941428,1787.8,1787.7,44.66825]
[1745847450058,2.90601428,1787.8,1787.7,44.66825]
[1745847450261,4.02419428,1787.8,1787.7,43.55]
[1745847450561,2.90601428,1787.8,1787.7,44.66825]
[1745847450757,0.02941428,1787.8,1787.7,41.91825]
[1745847450953,4.02419428,1787.8,1787.7,40.8]
[1745847451157,1.11825,1787.7,1787.6,7.07611]
[1745847451353,4.03585,1787.7,1787.6,3.2078]
[1745847451560,1.11849,1787.4,1787.3,40.8]
[1745847451869,2.79578,1787.6,1787.2,6.1051]
[1745847452054,1.11859,1787.2,1787.0,1.11867]
[1745847452363,3.2078,1787.3,1786.9,46.9051]
[1745847452753,0.02941428,1787.1,1787.0,1.11869]
[1745847453365,2.9176,1787.4,1787.3,1.1185]
[1745847453560,5.9533,1787.9,1787.5,1.11834]
[1745847453758,4.03591,1787.6,1787.4,1.1184]
[1745847454063,2.9176,1787.6,1787.3,4.01577]
[1745847454264,2.9176,1787.6,1787.0,8.6557]
[1745847454564,2.9176,1787.6,1787.2,2.79641]
[1745847454764,1.11844,1787.4,1787.3,2.7838]
[1745847455060,1.11842,1787.5,1787.3,2.7838]
[1745847455271,2.7474,1787.4,1787.3,3.90228]
[1745847455759,3.86584,1787.4,1787.2,1.11854]
[1745847455961,3.86585,1787.4,1787.2,1.1185]
[1745847456163,1.11856,1787.2,1787.1,5.9916]
[1745847456360,1.1186,1787.2,1787.0,1.11869]
[1745847456569,2.7474,1787.1,1787.0,1.11869]
[1745847456963,3.95872,1787.3,1787.1,1.11861]
[1745847457164,2.9205,1787.4,1787.3,1.1185]
[1745847457569,7.16627,1787.7,1787.2,2.79639]
[1745847457868,1.11832,1787.6,1787.4,1.1184]
[1745847458271,2.8402,1787.7,1787.2,7.5743]
[1745847458471,1.11841,1787.5,1787.3,1.11848]
[1745847458770,1.1185,1787.3,1787.2,4.841]
[1745847458969,5.63587,1787.7,1787.3,1.11848]
[1745847459270,1.11846,1787.4,1787.1,2.7333]
[1745847459471,2.8402,1787.7,1787.3,1.11845]
[1745847459667,1.11853,1787.3,1787.1,2.7333]
[1745847459871,1.11858,1787.2,1786.9,51.3031]
[1745847460065,1.11858,1787.2,1786.9,54.0364]
[1745847460367,1.11865,1787.1,1786.9,44.65202]
[1745847460570,2.8238,1787.1,1787.0,1.11866]
[1745847460770,2.8238,1787.1,1787.0,3.95357011]
[1745847461273,2.8238,1787.2,1787.0,2.9109]
[1745847461468,3.94242,1787.2,1787.0,4.02957]
[1745847461668,1.11862,1787.1,1787.0,4.02957]
[1745847461870,2.8238,1787.1,1787.0,1.11867]
[1745847462674,2.8238,1787.1,1786.9,2.9109]
[1745847462973,2.8238,1787.1,1787.0,1.11869]
[1745847463367,3.94242,1787.1,1786.9,1.1187]
[1745847463565,2.8238,1787.1,1786.6,2.8756]
[1745847463767,3.2078,1786.7,1786.0,0.43981368]
[1745847463968,3.2078,1786.4,1786.1,1.11921]
[1745847464276,2.7798,1786.3,1786.1,1.11922]
[1745847464468,3.2078,1786.2,1785.8,7.4923]
[1745847464668,3.2078,1785.9,1785.8,5.96144]
[1745847464972,1.11913,1786.3,1786.1,1.11923]
[1745847465166,1.11913,1786.3,1785.6,3.2078]
[1745847465167,3.2078,1786.3,1785.6,6.00662]
[1745847465362,3.2078,1786.3,1786.2,1.11919]
[1745847465573,1.11915,1786.3,1786.1,1.11923]
[1745847465766,3.2078,1786.3,1785.9,2.79844]
[1745847465967,1.11907,1786.4,1785.9,2.79844]
[1745847465968,2.7798,1786.4,1786.3,1.11912]
[1745847466165,1.11877,1786.9,1786.3,2.79769]
[1745847466363,3.86492,1786.8,1786.5,1.11895]
[1745847466575,1.11887,1786.7,1786.5,1.11895]
[1745847466779,2.7461,1786.7,1786.6,1.11894]
[1745847467279,3.2078,1786.8,1786.7,1.11887]
[1745847467676,3.2078,1787.3,1787.2,1.11856]
[1745847468276,3.61137556,1787.4,1787.3,1.1185]
[1745847468473,7.22275113,1787.7,1787.2,8.36565293]
[1745847468678,7.22275113,1787.7,1787.4,1.11844]
[1745847469075,7.22275113,1787.7,1787.4,5.96144]
[1745847469976,7.22275113,1787.7,1787.4,46.76144]
[1745847470378,0.24718318,1787.5,1787.4,51.76144]
[1745847470575,0.24718318,1787.5,1787.4,46.76144]
[1745847470768,0.24718318,1787.5,1787.4,46.1253]
[1745847470973,2.6659,1787.6,1787.4,44.61002]
[1745847471177,3.78422,1787.6,1787.4,43.4916]
[1745847471372,1.11844,1787.4,1787.3,4.842]
[1745847471573,3.2078,1787.5,1787.3,4.842]
[1745847471574,4.3262,1787.5,1787.3,4.842]
[1745847471769,2.6659,1787.4,1787.3,4.842]
[1745847472074,2.6659,1787.4,1787.3,5.9605]
[1745847472276,3.2078,1787.7,1787.4,1.11844]
[1745847472476,6.0807,1787.7,1787.4,3.94894]
[1745847472790,2.8729,1787.7,1787.6,1.11831]
[1745847473076,3.2078,1787.9,1787.4,2.8305]
[1745847473279,1.11811,1788.0,1787.7,1.1182]
[1745847473280,3.99101,1788.0,1787.7,1.1182]
[1745847473479,2.8729,1788.0,1787.9,1.11812]
[1745847474070,3.2078,1788.1,1787.8,2.8305]
[1745847474279,3.2078,1788.1,1788.0,1.11806]
[1745847474683,1.11777,1788.5,1788.3,1.11786]
[1745847474885,6.0807,1788.5,1788.1,10.46748]
[1745847475070,0.4423798,1788.4,1788.2,2.8305]
[1745847475275,0.4423798,1788.4,1788.3,1.11782]
[1745847475584,5.0,1788.4,1787.9,4.03308]
[1745847475882,8.87508,1788.5,1787.9,4.03308]
[1745847475883,3.2078,1788.2,1787.9,2.915]
[1745847476083,2.7027,1788.1,1788.0,3.77524]
[1745847476384,3.2078,1788.2,1788.1,1.118]
[1745847476882,3.82046,1788.5,1788.0,5.45221]
[1745847477083,5.9105,1788.5,1788.1,2.7586]
[1745847477280,3.2078,1788.5,1788.4,1.11781]
[1745847477480,0.44192607,1788.5,1788.2,5.45204]
[1745847477679,3.2078,1788.7,1788.3,45.641]
[1745847477878,0.44197536,1788.6,1788.5,1.11775]
[1745847478382,0.44197536,1788.6,1788.5,3.99685]
[1745847478678,3.2078,1789.0,1788.9,1.1175]
[1745847478870,3.2078,1789.0,1788.6,2.79421]
[1745847478871,3.2078,1789.0,1788.7,4.841]
[1745847479075,3.2078,1789.0,1788.9,1.1175]
[1745847479271,2.6551,1789.2,1789.0,1.11741]
[1745847479482,2.6551,1789.2,1789.1,2.9088]
[1745847479783,1.11731,1789.2,1789.1,2.9088]
[1745847479982,0.44157577,1789.2,1789.1,2.9088]
[1745847480387,0.44157577,1789.2,1789.1,4.02617]
[1745847480600,0.44157577,1789.2,1789.1,2.9088]
[1745847480787,0.44157577,1789.2,1789.1,4.02617]
[1745847481088,0.44157577,1789.2,1789.1,8.87217]
[1745847482086,1.11708,1789.6,1789.4,1.11715]
[1745847482383,3.2078,1789.8,1789.5,1.11707]
[1745847482679,1.117,1789.7,1789.6,2.8615]
[1745847482884,1.11725,1789.3,1789.2,5.707]
[1745847483085,1.11723,1789.4,1789.2,7.6543]
[1745847483393,1.11715,1789.5,1789.3,1.11723]
[1745847483687,4.32491,1789.6,1789.2,7.6543]
[1745847483887,1.11712,1789.5,1789.3,1.11721]
[1745847484077,3.2078,1789.6,1789.2,4.845]
[1745847484272,1.11723,1789.4,1789.2,8.8238]
[1745847484478,4.32499,1789.4,1789.2,7.7065]
[1745847484689,3.2078,1789.4,1789.2,7.7065]
[1745847484891,3.2078,1789.4,1789.3,1.11725]
[1745847485087,0.44013708,1789.4,1789.3,4.00585]
[1745847485480,0.44013708,1789.4,1789.3,2.8886]
[1745847485681,4.32499,1789.4,1789.3,2.8886]
[1745847485980,3.2078,1789.6,1789.3,2.8886]
[1745847486286,7.20156328,1789.7,1789.6,1.11706]
[1745847486481,7.20156328,1789.7,1789.6,5.96106]